[Event "FIDE Grand Swiss 2023"]
[Site "Villa Marina, Douglas, Isle of Man"]
[Date "2023.10.25"]
[Round "1.32"]
[White "Esipenko, Andrey"]
[Black "Sanal, Vahap"]
[Result "1-0"]
[WhiteElo "2683"]
[BlackElo "2603"]
[EventDate "2023.10.25"]
[ECO "C53"]
[PlyCount "95"]
[BlackFideId "6300545"]
[TimeControl "40/100 + 20/50 + 15 + 30s/move"]
[WhiteFideId "24175439"]

1.e4 {[%clk 01:40:53] [%emt 00:00:06]} 1...e5 {[%clk 01:40:39] [%emt 00:00:21]} 
2.Nf3 {[%clk 01:41:05] [%emt 00:00:18]} 2...Nc6 {[%clk 01:40:49] [%emt
00:00:20]} 3.Bc4 {[%clk 01:41:12] [%emt 00:00:23]} 3...Bc5 {[%clk 01:41:07]
[%emt 00:00:12]} 4.c3 {[%clk 01:40:53] [%emt 00:00:50]} 4...Nf6 {[%clk 01:41:16]
[%emt 00:00:20]} 5.d3 {[%clk 01:40:09] [%emt 00:01:14]} 5...a6 {[%clk 01:38:31]
[%emt 00:03:15]} 6.O-O {[%clk 01:36:30] [%emt 00:04:09]} 6...d6 {[%clk 01:38:34]
[%emt 00:00:27]} 7.Re1 {[%clk 01:35:07] [%emt 00:01:53]} 7...Ba7 {[%clk
01:38:02] [%emt 00:01:02]} 8.Nbd2 {[%clk 01:35:01] [%emt 00:00:36]} 8...O-O 
{[%clk 01:36:47] [%emt 00:01:45]} 9.Nf1 {[%clk 01:35:10] [%emt 00:00:21]} 
9...h6 {[%clk 01:34:28] [%emt 00:02:49]} 10.Ng3 {[%clk 01:30:30] [%emt
00:05:10]} 10...Na5 {[%clk 01:28:12] [%emt 00:06:46]} 11.Bb3 {[%clk 01:30:54]
[%emt 00:00:06]} 11...Nxb3 {[%clk 01:28:06] [%emt 00:00:36]} 12.axb3 {[%clk
01:31:18] [%emt 00:00:06]} 12...Re8 {[%clk 01:20:14] [%emt 00:08:22]} 13.h3 
{[%clk 01:29:05] [%emt 00:02:43]} 13...Bd7 {[%clk 01:15:06] [%emt 00:05:37]} 
14.Bd2 {[%clk 01:19:01] [%emt 00:10:35]} 14...Nh7 {[%clk 01:12:52] [%emt
00:02:43]} 15.d4 {[%clk 01:17:37] [%emt 00:01:55]} 15...Nf8 {[%clk 01:11:32]
[%emt 00:01:50]} 16.Be3 {[%clk 01:14:50] [%emt 00:03:17]} 16...Ng6 {[%clk
01:10:42] [%emt 00:01:19]} 17.Qd2 {[%clk 01:12:10] [%emt 00:03:11]} 17...Nh4 
{[%clk 01:01:42] [%emt 00:09:30]} 18.Nxh4 {[%clk 01:11:27] [%emt 00:01:13]} 
18...Qxh4 {[%clk 01:02:07] [%emt 00:00:04]} 19.Kh2 {[%clk 01:10:06] [%emt
00:01:52]} 19...Rad8 {[%clk 00:55:37] [%emt 00:06:59]} 20.f4 {[%clk 01:03:52]
[%emt 00:06:45]} 20...exd4 {[%clk 00:53:20] [%emt 00:02:47]} 21.cxd4 {[%clk
00:55:42] [%emt 00:08:41]} 21...d5 {[%clk 00:35:03] [%emt 00:18:45]} 22.e5 
{[%clk 00:54:01] [%emt 00:02:12]} 22...f6 {[%clk 00:26:54] [%emt 00:08:39]} 
23.b4 {[%clk 00:46:24] [%emt 00:08:08]} 23...Rf8 {[%clk 00:19:34] [%emt
00:07:48]} 24.e6 {[%clk 00:25:25] [%emt 00:21:30]} 24...Bxe6 {[%clk 00:19:56]
[%emt 00:00:08]} 25.f5 {[%clk 00:25:52] [%emt 00:00:04]} 25...Bf7 {[%clk
00:19:52] [%emt 00:00:32]} 26.Rf1 {[%clk 00:26:03] [%emt 00:00:20]} 26...h5 
{[%clk 00:19:56] [%emt 00:00:26]} 27.Rf4 {[%clk 00:23:17] [%emt 00:03:15]} 
27...Qg5 {[%clk 00:20:20] [%emt 00:00:06]} 28.Rf3 {[%clk 00:18:42] [%emt
00:05:06]} 28...Qh4 {[%clk 00:20:44] [%emt 00:00:06]} 29.b5 {[%clk 00:16:18]
[%emt 00:02:54]} 29...Rfe8 {[%clk 00:18:33] [%emt 00:02:41]} 30.Bf4 {[%clk
00:15:42] [%emt 00:01:06]} 30...Bb8 {[%clk 00:12:08] [%emt 00:06:55]} 31.bxa6 
{[%clk 00:15:43] [%emt 00:00:29]} 31...bxa6 {[%clk 00:12:30] [%emt 00:00:08]} 
32.Rxa6 {[%clk 00:15:40] [%emt 00:00:34]} 32...c6 {[%clk 00:12:14] [%emt
00:00:46]} 33.Rxc6 {[%clk 00:13:31] [%emt 00:02:38]} 33...Bxf4 {[%clk 00:07:56]
[%emt 00:04:48]} 34.Rxf4 {[%clk 00:13:39] [%emt 00:00:22]} 34...Qg5 {[%clk
00:08:21] [%emt 00:00:04]} 35.h4 {[%clk 00:13:42] [%emt 00:00:27]} 35...Qh6 
{[%clk 00:08:49] [%emt 00:00:02]} 36.Rb6 {[%clk 00:10:19] [%emt 00:03:54]} 
36...Ra8 {[%clk 00:04:31] [%emt 00:04:47]} 37.Rf2 {[%clk 00:08:12] [%emt
00:02:38]} 37...Qxd2 {[%clk 00:04:31] [%emt 00:00:30]} 38.Rxd2 {[%clk 00:08:37]
[%emt 00:00:05]} 38...Re7 {[%clk 00:03:54] [%emt 00:01:07]} 39.b4 {[%clk
00:02:29] [%emt 00:06:38]} 39...Re3 {[%clk 00:04:01] [%emt 00:00:20]} 40.b5 
{[%clk 00:01:30] [%emt 00:01:32]} 40...Raa3 {[%clk 00:04:26] [%emt 00:00:04]} 
41.Rb8+ {[%clk 00:48:33] [%emt 00:03:27]} 41...Kh7 {[%clk 00:53:04] [%emt
00:01:52]} 42.Ne2 {[%clk 00:43:14] [%emt 00:05:50]} 42...Rab3 {[%clk 00:40:20]
[%emt 00:13:13]} 43.Nf4 {[%clk 00:30:36] [%emt 00:13:09]} 43...Re4 {[%clk
00:38:44] [%emt 00:02:06]} 44.g3 {[%clk 00:30:35] [%emt 00:00:31]} 44...Be8 
{[%clk 00:25:11] [%emt 00:14:02]} 45.Ne6 {[%clk 00:25:18] [%emt 00:05:47]} 
45...Bxb5 {[%clk 00:22:48] [%emt 00:02:53]} 46.Nc5 {[%clk 00:24:12] [%emt
00:01:37]} 46...Rb1 {[%clk 00:21:38] [%emt 00:01:40]} 47.Nxe4 {[%clk 00:23:01]
[%emt 00:01:41]} 47...dxe4 {[%clk 00:22:05] [%emt 00:00:02]} 48.d5 {[%clk
00:17:50] [%emt 00:05:41]} 1-0

[Event "FIDE Grand Swiss 2023"]
[Site "Villa Marina, Douglas, Isle of Man"]
[Date "2023.10.25"]
[Round "1.33"]
[White "Mishra, Abhimanyu"]
[Black "Sarana, Alexey"]
[Result "0-1"]
[WhiteElo "2592"]
[BlackElo "2682"]
[EventDate "2023.10.25"]
[ECO "B92"]
[PlyCount "158"]
[BlackFideId "24133795"]
[TimeControl "40/100 + 20/50 + 15 + 30s/move"]
[WhiteFideId "30920019"]

1.e4 {[%clk 01:40:58] [%emt 00:00:02]} 1...c5 {[%clk 01:40:37] [%emt 00:00:23]} 
2.Nf3 {[%clk 01:41:18] [%emt 00:00:11]} 2...d6 {[%clk 01:41:03] [%emt 00:00:04]} 
3.d4 {[%clk 01:41:37] [%emt 00:00:10]} 3...Nf6 {[%clk 01:40:49] [%emt 00:00:45]} 
4.Nc3 {[%clk 01:41:43] [%emt 00:00:24]} 4...cxd4 {[%clk 01:40:55] [%emt
00:00:25]} 5.Nxd4 {[%clk 01:42:02] [%emt 00:00:10]} 5...a6 {[%clk 01:41:13]
[%emt 00:00:12]} 6.Be2 {[%clk 01:42:11] [%emt 00:00:21]} 6...e5 {[%clk 01:41:19]
[%emt 00:00:24]} 7.Nb3 {[%clk 01:42:23] [%emt 00:00:18]} 7...Be7 {[%clk
01:41:36] [%emt 00:00:12]} 8.Be3 {[%clk 01:42:23] [%emt 00:00:30]} 8...Be6 
{[%clk 01:41:53] [%emt 00:00:13]} 9.Nd5 {[%clk 01:42:20] [%emt 00:00:34]} 
9...Nbd7 {[%clk 01:42:12] [%emt 00:00:12]} 10.Qd3 {[%clk 01:42:19] [%emt
00:00:30]} 10...O-O {[%clk 01:40:02] [%emt 00:02:40]} 11.a4 {[%clk 01:41:52]
[%emt 00:00:57]} 11...Bxd5 {[%clk 01:38:41] [%emt 00:01:51]} 12.exd5 {[%clk
01:42:12] [%emt 00:00:09]} 12...Rc8 {[%clk 01:37:20] [%emt 00:01:51]} 13.c4 
{[%clk 01:42:21] [%emt 00:00:21]} 13...e4 {[%clk 01:33:53] [%emt 00:03:58]} 
14.Qd4 {[%clk 01:41:51] [%emt 00:01:00]} 14...Nc5 {[%clk 01:32:51] [%emt
00:01:32]} 15.Nxc5 {[%clk 01:41:35] [%emt 00:00:46]} 15...dxc5 {[%clk 01:33:15]
[%emt 00:00:06]} 16.Qd2 {[%clk 01:41:56] [%emt 00:00:08]} 16...Bd6 {[%clk
01:26:41] [%emt 00:07:04]} 17.O-O {[%clk 01:30:59] [%emt 00:11:27]} 17...Qc7 
{[%clk 01:17:45] [%emt 00:09:26]} 18.g3 {[%clk 01:24:23] [%emt 00:07:06]} 
18...a5 {[%clk 01:16:48] [%emt 00:01:28]} 19.Ra3 {[%clk 01:13:52] [%emt
00:11:01]} 19...Rce8 {[%clk 01:13:35] [%emt 00:03:43]} 20.Kg2 {[%clk 01:07:53]
[%emt 00:06:29]} 20...Nd7 {[%clk 01:13:13] [%emt 00:00:52]} 21.Bf4 {[%clk
00:55:12] [%emt 00:13:10]} 21...b6 {[%clk 00:45:57] [%emt 00:27:46]} 22.h4 
{[%clk 00:49:11] [%emt 00:06:31]} 22...f5 {[%clk 00:44:01] [%emt 00:02:27]} 
23.Rh1 {[%clk 00:40:45] [%emt 00:08:56]} 23...Bxf4 {[%clk 00:40:19] [%emt
00:04:12]} 24.gxf4 {[%clk 00:35:51] [%emt 00:05:23]} 24...Nf6 {[%clk 00:39:42]
[%emt 00:01:07]} 25.h5 {[%clk 00:34:49] [%emt 00:01:32]} 25...Re7 {[%clk
00:37:26] [%emt 00:02:46]} 26.Rh4 {[%clk 00:32:17] [%emt 00:03:02]} 26...Ne8 
{[%clk 00:34:03] [%emt 00:03:54]} 27.Rg3 {[%clk 00:30:52] [%emt 00:01:55]} 
27...Rf6 {[%clk 00:34:27] [%emt 00:00:05]} 28.Qe3 {[%clk 00:28:14] [%emt
00:03:09]} 28...Kf8 {[%clk 00:31:05] [%emt 00:03:51]} 29.b3 {[%clk 00:25:53]
[%emt 00:02:52]} 29...Qd6 {[%clk 00:30:01] [%emt 00:01:34]} 30.Rg5 {[%clk
00:24:05] [%emt 00:02:17]} 30...Rff7 {[%clk 00:29:45] [%emt 00:00:46]} 31.Rh3 
{[%clk 00:17:48] [%emt 00:06:48]} 31...Qf6 {[%clk 00:27:36] [%emt 00:02:39]} 
32.Kh2 {[%clk 00:17:37] [%emt 00:00:41]} 32...Nd6 {[%clk 00:25:39] [%emt
00:02:27]} 33.Rhg3 {[%clk 00:13:37] [%emt 00:04:29]} 33...Ke8 {[%clk 00:25:16]
[%emt 00:00:52]} 34.Qc3 {[%clk 00:10:50] [%emt 00:03:18]} 34...Qd4 {[%emt
00:04:05]} 35.Qe3 {[%clk 00:11:18]} 35...Kd7 {[%clk 00:21:31] [%emt 00:00:39]} 
36.Rg2 {[%clk 00:10:42] [%emt 00:01:08]} 36...Qf6 {[%clk 00:18:55] [%emt
00:03:05]} 37.R2g3 {[%clk 00:07:55] [%emt 00:03:18]} 37...Kc7 {[%clk 00:17:18]
[%emt 00:02:07]} 38.Bf1 {[%clk 00:07:16] [%emt 00:01:09]} 38...Qb2 {[%clk
00:16:51] [%emt 00:00:56]} 39.Bh3 {[%clk 00:06:08] [%emt 00:01:39]} 39...Kd8 
{[%clk 00:13:56] [%emt 00:03:26]} 40.Kg1 {[%clk 00:04:28] [%emt 00:02:09]} 
40...Ke8 {[%clk 00:11:52] [%emt 00:02:34]} 41.Bf1 {[%clk 00:49:35] [%emt
00:05:24]} 41...Qd4 {[%clk 00:59:45] [%emt 00:02:37]} 42.Be2 {[%clk 00:44:33]
[%emt 00:05:32]} 42...Kf8 {[%clk 00:59:32] [%emt 00:00:43]} 43.Kg2 {[%clk
00:42:22] [%emt 00:02:41]} 43...Rf6 {[%clk 00:58:43] [%emt 00:01:18]} 44.Kg1 
{[%clk 00:42:00] [%emt 00:00:52]} 44...Rh6 {[%clk 00:58:58] [%emt 00:00:15]} 
45.Kg2 {[%clk 00:39:08] [%emt 00:03:22]} 45...Qb2 {[%clk 00:58:30] [%emt
00:00:56]} 46.Bf1 {[%clk 00:37:20] [%emt 00:02:21]} 46...Qf6 {[%clk 00:57:45]
[%emt 00:01:14]} 47.Rh3 {[%clk 00:24:42] [%emt 00:13:09]} 47...g6 {[%clk
00:55:28] [%emt 00:02:47]} 48.hxg6 {[%clk 00:19:59] [%emt 00:05:13]} 48...Rxg6 
{[%clk 00:54:13] [%emt 00:01:44]} 49.Rxg6 {[%clk 00:18:00] [%emt 00:02:29]} 
49...hxg6 {[%clk 00:46:03] [%emt 00:08:41]} 50.Qc3 {[%clk 00:11:26] [%emt
00:07:03]} 50...Qxc3 {[%clk 00:38:38] [%emt 00:07:56]} 51.Rxc3 {[%clk 00:11:54]
[%emt 00:00:01]} 51...Rh7 {[%clk 00:39:03] [%emt 00:00:05]} 52.Rh3 {[%clk
00:09:26] [%emt 00:02:59]} 52...Rxh3 {[%clk 00:38:50] [%emt 00:00:43]} 53.Kxh3 
{[%clk 00:09:54] [%emt 00:00:01]} 53...Kg7 {[%clk 00:39:14] [%emt 00:00:06]} 
54.Kg3 {[%clk 00:08:33] [%emt 00:01:51]} 54...Kf6 {[%clk 00:39:39] [%emt
00:00:05]} 55.Be2 {[%clk 00:05:22] [%emt 00:03:41]} 55...Ne8 {[%clk 00:36:40]
[%emt 00:03:30]} 56.Kh4 {[%clk 00:04:54] [%emt 00:00:58]} 56...Nc7 {[%clk
00:37:01] [%emt 00:00:09]} 57.Bd1 {[%clk 00:02:12] [%emt 00:03:11]} 57...Na6 
{[%clk 00:37:06] [%emt 00:00:25]} 58.Bc2 {[%clk 00:01:27] [%emt 00:01:15]} 
58...Nb4 {[%clk 00:37:35] [%emt 00:00:01]} 59.Bb1 {[%clk 00:01:34] [%emt
00:00:24]} 59...Nd3 {[%clk 00:20:18] [%emt 00:17:46]} 60.f3 {[%clk 00:01:41]
[%emt 00:00:23]} 60...Nxf4 {[%clk 00:20:42] [%emt 00:00:06]} 61.fxe4 {[%clk
00:01:47] [%emt 00:00:24]} 61...g5+ {[%clk 00:21:07] [%emt 00:00:05]} 62.Kg3 
{[%clk 00:02:14] [%emt 00:00:03]} 62...Ne2+ {[%clk 00:21:34] [%emt 00:00:03]} 
63.Kf2 {[%clk 00:10:16] [%emt 00:07:28]} 63...Nc3 {[%clk 00:36:59] [%emt
00:00:05]} 64.Bc2 {[%clk 00:10:42] [%emt 00:00:04]} 64...Nxe4+ {[%clk 00:36:18]
[%emt 00:01:11]} 65.Bxe4 {[%clk 00:09:25] [%emt 00:01:47]} 65...fxe4 {[%clk
00:36:46] [%emt 00:00:02]} 66.Ke3 {[%clk 00:08:01] [%emt 00:01:54]} 66...Ke5 
{[%clk 00:37:08] [%emt 00:00:08]} 67.Kf2 {[%clk 00:08:28] [%emt 00:00:03]} 
67...g4 {[%clk 00:37:02] [%emt 00:00:36]} 68.Ke3 {[%clk 00:06:00] [%emt
00:02:58]} 68...g3 {[%clk 00:37:20] [%emt 00:00:12]} 69.Ke2 {[%clk 00:06:28]
[%emt 00:00:02]} 69...Kf5 {[%clk 00:37:46] [%emt 00:00:04]} 70.Ke3 {[%clk
00:04:49] [%emt 00:02:10]} 70...Kg4 {[%clk 00:37:54] [%emt 00:00:21]} 71.d6 
{[%clk 00:04:40] [%emt 00:00:40]} 71...g2 {[%clk 00:38:17] [%emt 00:00:07]} 
72.Kf2 {[%clk 00:04:49] [%emt 00:00:20]} 72...Kh3 {[%clk 00:38:44] [%emt
00:00:03]} 73.d7 {[%clk 00:05:09] [%emt 00:00:11]} 73...e3+ {[%clk 00:39:11]
[%emt 00:00:03]} 74.Kf3 {[%clk 00:05:01] [%emt 00:00:37]} 74...g1=Q {[%clk
00:39:34] [%emt 00:00:07]} 75.d8=Q {[%clk 00:05:23] [%emt 00:00:09]} 75...Qf2+ 
{[%clk 00:39:52] [%emt 00:00:11]} 76.Ke4 {[%clk 00:05:49] [%emt 00:00:05]} 
76...e2 {[%clk 00:40:18] [%emt 00:00:04]} 77.Qd7+ {[%clk 00:02:54] [%emt
00:03:24]} 77...Kg2 {[%clk 00:40:17] [%emt 00:00:30]} 78.Qg4+ {[%clk 00:02:39]
[%emt 00:00:45]} 78...Kf1 {[%clk 00:40:43] [%emt 00:00:04]} 79.Kd3 {[%clk
00:02:17] [%emt 00:00:53]} 79...Qd4+ {[%clk 00:41:05] [%emt 00:00:08]} 0-1

[Event "FIDE Grand Swiss 2023"]
[Site "Villa Marina, Douglas, Isle of Man"]
[Date "2023.10.25"]
[Round "1.34"]
[White "Amin, Bassem"]
[Black "Wagner, Dennis"]
[Result "1-0"]
[WhiteElo "2680"]
[BlackElo "2589"]
[EventDate "2023.10.25"]
[ECO "C50"]
[PlyCount "103"]
[BlackFideId "24650684"]
[TimeControl "40/100 + 20/50 + 15 + 30s/move"]
[WhiteFideId "10601457"]

1.e4 {[%clk 01:40:00] [%emt 00:00:58]} 1...e5 {[%clk 01:40:51] [%emt 00:00:10]} 
2.Nf3 {[%clk 01:40:16] [%emt 00:00:14]} 2...Nc6 {[%clk 01:41:12] [%emt
00:00:09]} 3.Bc4 {[%clk 01:39:59] [%emt 00:00:47]} 3...Nf6 {[%clk 01:41:18]
[%emt 00:00:24]} 4.d3 {[%clk 01:40:22] [%emt 00:00:07]} 4...Bc5 {[%clk 01:41:33]
[%emt 00:00:15]} 5.Nc3 {[%clk 01:40:04] [%emt 00:00:48]} 5...a6 {[%clk 01:41:31]
[%emt 00:00:32]} 6.Bg5 {[%clk 01:33:35] [%emt 00:07:00]} 6...h6 {[%clk 01:39:50]
[%emt 00:02:11]} 7.Bxf6 {[%clk 01:33:56] [%emt 00:00:08]} 7...Qxf6 {[%clk
01:40:12] [%emt 00:00:08]} 8.Nd5 {[%clk 01:34:21] [%emt 00:00:06]} 8...Qd8 
{[%clk 01:40:22] [%emt 00:00:18]} 9.c3 {[%clk 01:34:42] [%emt 00:00:09]} 9...d6 
{[%clk 01:37:26] [%emt 00:03:27]} 10.d4 {[%clk 01:34:51] [%emt 00:00:21]} 
10...Ba7 {[%clk 01:30:03] [%emt 00:07:53]} 11.dxe5 {[%clk 01:33:38] [%emt
00:01:43]} 11...Be6 {[%clk 01:27:15] [%emt 00:03:18]} 12.exd6 {[%clk 01:24:44]
[%emt 00:09:25]} 12...Qxd6 {[%clk 01:27:29] [%emt 00:00:15]} 13.Qe2 {[%clk
01:20:48] [%emt 00:04:26]} 13...O-O-O {[%clk 01:14:34] [%emt 00:13:25]} 14.Rd1 
{[%clk 01:13:52] [%emt 00:07:26]} 14...Na5 {[%clk 00:55:30] [%emt 00:19:34]} 
15.Ne3 {[%clk 00:54:31] [%emt 00:19:51]} 15...Qxd1+ {[%clk 00:44:58] [%emt
00:11:03]} 16.Nxd1 {[%clk 00:53:30] [%emt 00:01:31]} 16...Bxc4 {[%clk 00:45:24]
[%emt 00:00:04]} 17.Qc2 {[%clk 00:53:48] [%emt 00:00:12]} 17...Bd3 {[%clk
00:38:08] [%emt 00:07:46]} 18.Qa4 {[%clk 00:47:26] [%emt 00:06:52]} 18...Nc4 
{[%clk 00:37:58] [%emt 00:00:40]} 19.b3 {[%clk 00:45:26] [%emt 00:02:32]} 
19...Nb6 {[%clk 00:30:44] [%emt 00:07:43]} 20.Qa5 {[%clk 00:31:55] [%emt
00:14:00]} 20...Bxe4 {[%clk 00:29:59] [%emt 00:01:15]} 21.c4 {[%clk 00:23:28]
[%emt 00:08:58]} 21...Nd7 {[%clk 00:07:53] [%emt 00:22:35]} 22.O-O {[%clk
00:20:42] [%emt 00:03:16]} 22...Nc5 {[%clk 00:08:18] [%emt 00:00:05]} 23.Ne3 
{[%clk 00:12:49] [%emt 00:08:24]} 23...Rhe8 {[%clk 00:08:41] [%emt 00:00:06]} 
24.Rd1 {[%clk 00:10:40] [%emt 00:02:37]} 24...Nd3 {[%clk 00:07:44] [%emt
00:01:29]} 25.Ne1 {[%clk 00:07:02] [%emt 00:04:08]} 25...Re5 {[%clk 00:01:42]
[%emt 00:06:32]} 26.Qd2 {[%clk 00:05:29] [%emt 00:02:03]} 26...Bg6 {[%clk
00:01:52] [%emt 00:00:21]} 27.Nxd3 {[%clk 00:01:55] [%emt 00:04:04]} 27...Rxd3 
{[%clk 00:02:17] [%emt 00:00:05]} 28.Qe2 {[%clk 00:02:02] [%emt 00:00:21]} 
28...Rxd1+ {[%clk 00:00:56] [%emt 00:01:52]} 29.Qxd1 {[%clk 00:02:31] [%emt
00:00:02]} 29...Bxe3 {[%clk 00:01:19] [%emt 00:00:07]} 30.fxe3 {[%clk 00:02:54]
[%emt 00:00:06]} 30...Rxe3 {[%clk 00:01:41] [%emt 00:00:07]} 31.Qd4 {[%clk
00:03:08] [%emt 00:00:17]} 31...Re2 {[%clk 00:01:12] [%emt 00:00:59]} 32.Qxg7 
{[%clk 00:03:19] [%emt 00:00:19]} 32...h5 {[%clk 00:01:20] [%emt 00:00:22]} 
33.Qh8+ {[%clk 00:02:55] [%emt 00:00:54]} 33...Kd7 {[%clk 00:01:45] [%emt
00:00:05]} 34.Qd4+ {[%clk 00:03:21] [%emt 00:00:04]} 34...Kc8 {[%clk 00:02:06]
[%emt 00:00:09]} 35.g4 {[%clk 00:03:19] [%emt 00:00:33]} 35...Re4 {[%clk
00:00:39] [%emt 00:01:57]} 36.Qh8+ {[%clk 00:03:13] [%emt 00:00:35]} 36...Kd7 
{[%clk 00:01:05] [%emt 00:00:04]} 37.gxh5 {[%clk 00:02:43] [%emt 00:01:01]} 
37...Rg4+ {[%clk 00:01:28] [%emt 00:00:06]} 38.Kf1 {[%clk 00:01:28] [%emt
00:01:45]} 38...Rh4 {[%clk 00:01:38] [%emt 00:00:20]} 39.Qb8 {[%clk 00:01:44]
[%emt 00:00:15]} 39...Rxh5 {[%clk 00:01:13] [%emt 00:00:54]} 40.Qxb7 {[%clk
00:01:58] [%emt 00:00:16]} 40...a5 {[%clk 00:01:09] [%emt 00:00:34]} 41.Kg2 
{[%clk 00:00:32] [%emt 00:01:56]} 41...Rg5+ {[%clk 00:48:09] [%emt 00:03:30]} 
42.Kf2 {[%clk 00:47:34] [%emt 00:03:28]} 42...Re5 {[%clk 00:46:58] [%emt
00:01:41]} 43.h4 {[%clk 00:46:30] [%emt 00:01:34]} 43...Bh5 {[%clk 00:37:36]
[%emt 00:09:52]} 44.Kg3 {[%clk 00:46:27] [%emt 00:00:33]} 44...Bg6 {[%clk
00:37:35] [%emt 00:00:31]} 45.Qa7 {[%clk 00:45:56] [%emt 00:01:02]} 45...Kc6 
{[%clk 00:34:35] [%emt 00:03:28]} 46.Qa6+ {[%clk 00:44:28] [%emt 00:01:59]} 
46...Kd7 {[%clk 00:35:00] [%emt 00:00:05]} 47.Qf6 {[%clk 00:44:33] [%emt
00:00:22]} 47...Rf5 {[%clk 00:34:14] [%emt 00:01:19]} 48.Qd4+ {[%clk 00:44:51]
[%emt 00:00:12]} 48...Kc6 {[%clk 00:33:54] [%emt 00:00:50]} 49.Kg4 {[%clk
00:44:37] [%emt 00:00:44]} 49...Rh5 {[%clk 00:33:36] [%emt 00:00:49]} 50.a3 
{[%clk 00:44:22] [%emt 00:00:45]} 50...Kb7 {[%clk 00:33:51] [%emt 00:00:15]} 
51.c5 {[%clk 00:43:19] [%emt 00:01:32]} 51...Ka7 {[%clk 00:32:04] [%emt
00:02:17]} 52.Qa4 {[%clk 00:43:31] [%emt 00:00:18]} 1-0

[Event "FIDE Grand Swiss 2023"]
[Site "Villa Marina, Douglas, Isle of Man"]
[Date "2023.10.25"]
[Round "1.35"]
[White "Suleymanli, Aydin"]
[Black "Abasov, Nijat"]
[Result "1/2-1/2"]
[WhiteElo "2588"]
[BlackElo "2679"]
[EventDate "2023.10.25"]
[ECO "D20"]
[PlyCount "71"]
[BlackFideId "13402960"]
[TimeControl "40/100 + 20/50 + 15 + 30s/move"]
[WhiteFideId "13413937"]

1.d4 {[%clk 01:40:53] [%emt 00:00:06]} 1...d5 {[%clk 01:40:26] [%emt 00:00:34]} 
2.c4 {[%clk 01:40:25] [%emt 00:00:59]} 2...dxc4 {[%clk 01:40:44] [%emt
00:00:11]} 3.e4 {[%clk 01:38:42] [%emt 00:02:14]} 3...Nf6 {[%clk 01:40:44] [%emt
00:00:28]} 4.e5 {[%clk 01:38:12] [%emt 00:01:02]} 4...Nd5 {[%clk 01:41:01] [%emt
00:00:12]} 5.Bxc4 {[%clk 01:38:36] [%emt 00:00:07]} 5...Bf5 {[%clk 01:40:52]
[%emt 00:00:37]} 6.Qb3 {[%clk 01:36:28] [%emt 00:02:39]} 6...c6 {[%clk 01:41:06]
[%emt 00:00:17]} 7.Bxd5 {[%clk 01:34:29] [%emt 00:02:29]} 7...cxd5 {[%clk
01:41:02] [%emt 00:00:33]} 8.Qxb7 {[%clk 01:34:30] [%emt 00:00:30]} 8...Qc8 
{[%clk 01:41:25] [%emt 00:00:06]} 9.Qxc8+ {[%clk 01:33:50] [%emt 00:01:10]} 
9...Bxc8 {[%clk 01:41:02] [%emt 00:00:54]} 10.Nc3 {[%clk 01:29:30] [%emt
00:04:49]} 10...e6 {[%clk 01:41:20] [%emt 00:00:11]} 11.f4 {[%clk 01:29:59]
[%emt 00:00:03]} 11...Nc6 {[%clk 01:41:14] [%emt 00:00:35]} 12.Nf3 {[%clk
01:29:55] [%emt 00:00:35]} 12...Ba6 {[%clk 01:40:15] [%emt 00:01:28]} 13.Kf2 
{[%clk 01:26:46] [%emt 00:03:39]} 13...Rb8 {[%clk 01:38:31] [%emt 00:02:13]} 
14.b3 {[%clk 01:23:49] [%emt 00:03:29]} 14...Rc8 {[%clk 01:37:57] [%emt
00:01:04]} 15.Na4 {[%clk 01:16:34] [%emt 00:07:45]} 15...Bb5 {[%clk 01:35:41]
[%emt 00:02:45]} 16.Nc3 {[%clk 01:16:39] [%emt 00:00:25]} 16...Ba6 {[%clk
01:36:00] [%emt 00:00:11]} 17.Bd2 {[%clk 01:16:01] [%emt 00:01:09]} 17...Ba3 
{[%clk 01:26:16] [%emt 00:10:13]} 18.Na4 {[%clk 01:11:06] [%emt 00:05:26]} 
18...Kd7 {[%clk 01:23:12] [%emt 00:03:33]} 19.Bc1 {[%clk 01:05:50] [%emt
00:05:46]} 19...Be7 {[%clk 01:22:49] [%emt 00:00:53]} 20.Rd1 {[%clk 01:05:55]
[%emt 00:00:24]} 20...Nb4 {[%clk 01:23:01] [%emt 00:00:19]} 21.Ne1 {[%clk
01:04:51] [%emt 00:01:34]} 21...Nc2 {[%clk 01:21:43] [%emt 00:01:49]} 22.Rb1 
{[%clk 01:03:56] [%emt 00:01:24]} 22...Nxe1 {[%clk 01:21:30] [%emt 00:00:44]} 
23.Kxe1 {[%clk 01:04:04] [%emt 00:00:21]} 23...Rc2 {[%clk 01:21:06] [%emt
00:00:53]} 24.Rd2 {[%clk 01:03:41] [%emt 00:00:54]} 24...Bb4 {[%clk 01:19:02]
[%emt 00:02:34]} 25.Nc5+ {[%clk 01:03:40] [%emt 00:00:32]} 25...Rxc5 {[%clk
01:19:23] [%emt 00:00:08]} 26.dxc5 {[%clk 01:03:59] [%emt 00:00:11]} 26...Kc6 
{[%clk 01:19:43] [%emt 00:00:10]} 27.Bb2 {[%clk 01:03:11] [%emt 00:01:19]} 
27...g5 {[%clk 01:16:21] [%emt 00:03:51]} 28.fxg5 {[%clk 01:02:12] [%emt
00:01:29]} 28...h6 {[%clk 01:15:51] [%emt 00:01:00]} 29.gxh6 {[%clk 01:01:17]
[%emt 00:01:26]} 29...Rxh6 {[%clk 01:16:12] [%emt 00:00:07]} 30.Rd1 {[%clk
00:59:57] [%emt 00:01:51]} 30...Rxh2 {[%clk 01:16:21] [%emt 00:00:21]} 31.Kf2 
{[%clk 01:00:23] [%emt 00:00:04]} 31...Bxd2 {[%clk 01:16:35] [%emt 00:00:17]} 
32.Rxd2 {[%clk 01:00:26] [%emt 00:00:27]} 32...Rh4 {[%clk 01:16:25] [%emt
00:00:39]} 33.Bd4 {[%clk 01:00:27] [%emt 00:00:29]} 33...Rf4+ {[%clk 01:15:05]
[%emt 00:01:50]} 34.Kg3 {[%clk 01:00:26] [%emt 00:00:32]} 34...Re4 {[%clk
01:15:27] [%emt 00:00:07]} 35.a4 {[%clk 01:00:39] [%emt 00:00:19]} 35...Be2 
{[%clk 01:15:14] [%emt 00:00:42]} 36.b4 {[%clk 00:55:23] [%emt 00:05:46]} 1/2-1/2